bitfinex/quotes_ETHUSD_20241104
["timestamp","ask_amount","ask_price","bid_price","bid_amount"]
[1730725876030,0.8069,2485.7,2485.0,4.81874]
[1730725876192,4.02353,2485.4,2485.0,4.81874]
[1730725876533,0.8069,2485.7,2484.9,4.02423]
[1730725876534,0.06449728,2485.3,2484.9,4.02423]
[1730725876702,4.02387,2485.2,2484.8,4.81903]
[1730725876891,4.02342,2485.5,2484.9,4.02429]
[1730725877087,4.02342,2485.5,2484.8,4.81903]
[1730725877088,4.02357,2485.4,2484.8,4.81903]
[1730725877338,0.06454891,2485.3,2485.0,4.02413]
[1730725877521,0.06454891,2485.3,2485.1,4.02393]
[1730725877694,4.83003,2485.7,2485.1,4.0239]
[1730725877893,4.08799399,2485.6,2485.1,4.0239]
[1730725878509,0.06473399,2485.6,2485.0,4.02411]
[1730725878736,0.06473399,2485.6,2485.0,4.505991]
[1730725878737,4.02342,2485.5,2485.0,4.505991]
[1730725878937,0.06461021,2485.4,2485.0,4.505951]
[1730725879150,0.06461021,2485.4,2485.1,4.02397]
[1730725879354,4.82992,2485.7,2485.2,4.0237]
[1730725879559,0.0647539,2485.6,2485.2,4.0237]
[1730725880648,0.0647539,2485.6,2485.2,4.8766551]
[1730725880821,0.0647539,2485.6,2485.4,4.02338]
[1730725881022,0.0647539,2485.6,2485.4,4.02341]
[1730725881332,8.0455,2485.9,2485.4,4.02341]
[1730725881333,0.06508689,2485.5,2485.4,4.02341]
[1730725881566,8.04553,2485.9,2485.4,4.02341]
[1730725881769,0.06530234,2485.8,2485.4,4.02341]
[1730725882176,4.08817234,2485.8,2485.3,4.80315]
[1730725882383,8.04623,2485.7,2485.3,4.02364]
[1730725882694,4.0231,2485.7,2485.2,4.02374]
[1730725882896,0.06497094,2485.6,2485.3,4.0235]
[1730725883388,4.02278,2485.9,2485.4,4.02348]
[1730725883389,0.06489911,2485.5,2485.4,4.02348]
[1730725883587,0.06489911,2485.5,2485.3,4.02357]
[1730725883794,4.02311,2485.7,2485.1,4.79649]
[1730725883952,0.06469824,2485.4,2485.1,0.7726]
[1730725884152,0.06469824,2485.4,2485.0,4.02411]
[1730725884153,4.08819824,2485.4,2485.0,4.02411]
[1730725884348,4.02371,2485.3,2484.9,4.82129]
[1730725884550,0.06461891,2485.2,2484.9,8.04845]
[1730725884788,4.0235,2485.4,2485.0,4.02404]
[1730725884950,0.06455452,2485.1,2485.0,4.02404]
[1730725885150,4.8538,2485.5,2485.0,4.02404]
[1730725885354,0.06477008,2485.4,2485.0,4.02404]
[1730725886391,0.06477008,2485.4,2485.1,4.02396]
[1730725886616,0.06477008,2485.4,2485.2,4.02373]
[1730725887099,0.06477008,2485.4,2485.2,4.02368]
[1730725887267,0.06477008,2485.4,2485.1,0.8298]
[1730725887474,4.02342,2485.5,2485.0,4.02402]
[1730725887663,0.0646385,2485.3,2485.0,4.02402]
[1730725887851,4.02342,2485.5,2485.0,4.02402]
[1730725888195,4.02342,2485.5,2485.1,4.02398]
[1730725888354,0.06470912,2485.4,2485.1,4.02398]
[1730725888554,0.06470912,2485.4,2485.0,4.02413]
[1730725888792,4.08822912,2485.4,2485.0,4.02413]
[1730725889248,0.06470912,2485.4,2485.1,4.0239]
[1730725890307,0.06245715,2485.3,2485.1,4.02387]
[1730725890622,4.02341,2485.5,2485.1,4.02387]
[1730725890833,0.06238529,2485.2,2485.0,4.0241]
[1730725891034,0.7867,2485.3,2484.9,4.02418]
[1730725891344,0.7867,2485.3,2485.0,4.02413]
[1730725891502,0.06238032,2485.2,2485.0,4.02413]
[1730725891703,0.7867,2485.3,2485.1,4.02398]
[1730725892043,0.0628923,2485.2,2485.1,4.02398]
[1730725892405,4.02336,2485.5,2485.1,4.02398]
[1730725892605,0.06225127,2485.2,2485.1,4.02398]
[1730725892945,4.02336,2485.5,2485.1,4.02398]
[1730725893239,0.8031,2485.6,2485.2,4.0237]
[1730725893544,0.8031,2485.6,2485.1,4.78658]
[1730725893545,0.06303596,2485.4,2485.1,4.78648]
[1730725893744,4.82628,2485.6,2485.2,4.02369]
[1730725893952,0.06245217,2485.3,2485.2,4.02369]
[1730725894239,4.79327,2485.8,2485.3,4.02361]
[1730725894402,9.98382197,2485.8,2485.3,4.02361]
[1730725894917,4.0231,2485.7,2485.3,4.02361]
[1730725895117,4.79322,2485.8,2485.1,0.7626]
[1730725895309,4.02302,2485.7,2485.2,4.02382]
[1730725895510,4.02302,2485.7,2485.2,4.502462]
[1730725895902,4.02302,2485.7,2485.3,4.02358]
[1730725896239,4.02302,2485.7,2485.3,8.04717]
[1730725896418,0.7703,2485.8,2485.4,4.02335]
[1730725896625,4.79323,2485.8,2485.4,4.02335]
[1730725897704,8.44701254,2486.2,2486.1,3.8269]
[1730725897705,0.63014614,2486.2,2486.1,3.8269]
[1730725897907,0.0132381,2486.7,2486.1,9.44727363]
[1730725898146,0.0132381,2486.7,2486.5,4.02162]
[1730725898300,0.05200715,2486.6,2486.5,4.83622]
[1730725898746,0.0132381,2486.7,2486.6,4.02155]
[1730725899169,0.0132381,2486.7,2486.6,4.10196613]
[1730725899453,0.0132381,2486.7,2486.6,4.02155]
[1730725899840,0.0132381,2486.7,2486.6,4.10196612]
[1730725900050,0.0132381,2486.7,2486.6,4.91796612]
[1730725900384,0.0132381,2486.7,2486.6,5.316192]
[1730725900656,0.0615762,2488.0,2487.6,0.7607]
[1730725900858,4.0809362,2488.0,2487.6,0.7607]
[1730725901058,4.0809362,2488.0,2487.3,4.02042]
[1730725901059,4.06963488,2487.9,2487.3,4.02042]
[1730725901214,0.05005488,2487.9,2487.3,4.02033]
[1730725901415,0.05005488,2487.9,2487.4,4.02014]
[1730725901666,0.46315799,2487.9,2487.5,4.02007]
[1730725901863,0.46315799,2487.9,2487.2,0.7607]
[1730725902156,0.46315799,2487.9,2487.5,4.02007]
[1730725902558,0.46315799,2487.9,2487.5,8.04014]
[1730725902718,0.46315799,2487.9,2487.5,4.02007]
[1730725902920,0.46315799,2487.9,2487.5,4.02001]
[1730725903122,0.46315799,2487.9,2487.5,8.04002]
[1730725903318,0.46315799,2487.9,2487.5,4.02]
[1730725904062,4.52808,2487.7,2487.1,4.02069]
[1730725904308,8.54798,2487.7,2487.2,4.02058]
[1730725904510,0.04825928,2487.6,2487.2,4.02058]
[1730725904673,0.04825928,2487.6,2487.3,4.02036]
[1730725904874,4.01979,2487.7,2487.0,4.02078]
[1730725905216,4.06836375,2487.6,2486.9,0.08040959]
[1730725905511,4.0202,2487.5,2487.1,4.02073]
[1730725905683,0.04834375,2487.6,2487.1,4.02073]
[1730725905884,4.54882435,2487.7,2487.1,4.02073]
[1730725905885,0.04856204,2487.4,2487.1,4.02063]
[1730725906100,4.98596082,2487.6,2486.6,4.02148]
[1730725906301,4.98596082,2487.6,2486.4,4.02175]
[1730725906302,4.02104,2487.0,2486.4,4.02175]
[1730725906482,0.5083,2486.9,2486.5,4.02157]
[1730725906681,0.04734619,2486.9,2486.5,4.02157]
[1730725907081,0.04734619,2486.9,2486.8,4.02123]
[1730725907282,0.04734619,2486.9,2486.5,0.08043277]
[1730725907283,0.04734619,2486.9,2486.7,4.02137]
[1730725907510,4.02059,2487.2,2486.7,4.02137]
[1730725907694,0.04736478,2486.8,2486.7,4.02137]
[1730725907912,0.04736478,2486.8,2486.1,3.8283]
[1730725907913,3.5083,2487.2,2486.1,0.8283]
[1730725908111,0.86248852,2487.5,2485.7,0.8083]
[1730725908112,0.55,2486.6,2485.7,0.8083]
[1730725908434,7.06913079,2486.5,2485.9,4.02259]
[1730725908614,7.06913079,2486.5,2486.0,4.0225]
[1730725908811,7.06913079,2486.5,2485.7,0.8083]
[1730725908812,4.02197,2486.4,2485.8,4.02272]
[1730725909142,4.02198,2486.4,2485.8,4.02274]
[1730725909285,4.0222,2486.2,2485.8,4.02274]
[1730725909625,0.04715074,2486.1,2485.7,4.83122]
[1730725909825,0.04715074,2486.1,2485.7,5.716647]
[1730725910198,4.02248,2486.1,2485.5,4.02329]
[1730725910412,4.02248,2486.1,2485.4,4.79997]
[1730725910413,4.02273,2485.9,2485.4,4.79997]
[1730725910614,4.02318,2485.6,2485.1,4.80053]
[1730725910936,4.02318,2485.6,2485.0,4.02399]
[1730725911154,0.04642909,2485.5,2485.0,4.02399]
[1730725911445,4.06983909,2485.5,2485.0,8.528099]
[1730725911689,0.04642909,2485.5,2485.1,4.02397]
[1730725911823,4.06980909,2485.5,2485.0,4.504049]
[1730725912315,0.04642909,2485.5,2485.1,4.02398]
[1730725912641,0.04642909,2485.5,2485.0,0.480059]
[1730725912806,0.55472909,2485.5,2484.8,4.80096]
[1730725913141,4.02357,2485.4,2484.9,4.504366]
[1730725913351,8.04715,2485.4,2484.9,4.504366]
[1730725913502,4.02357,2485.4,2484.9,4.504366]
[1730725913851,0.04610659,2485.3,2484.9,0.480096]
[1730725914002,0.04610659,2485.3,2485.0,4.02412]
[1730725914213,0.04610659,2485.3,2484.9,4.504346]
[1730725914945,4.06978659,2485.3,2484.9,0.480096]
[1730725915406,4.06978659,2485.3,2484.5,4.79334]
[1730725915407,4.02406,2485.1,2484.5,4.79334]
[1730725915610,4.0243,2484.9,2484.4,4.02503]
[1730725915932,0.04579407,2484.8,2484.4,8.05005]
[1730725916145,0.04579407,2484.8,2484.4,4.906865]
[1730725916313,0.04579407,2484.8,2484.4,0.881845]
[1730725916629,0.04579407,2484.8,2484.2,8.81904]
[1730725916630,4.0247,2484.7,2484.2,4.79382]
[1730725916844,4.57865407,2484.8,2484.3,4.02527]
[1730725917026,0.04543692,2484.6,2484.3,4.02527]
[1730725917230,4.53286,2484.8,2484.3,4.02527]
[1730725917231,0.0455088,2484.7,2484.3,4.02527]
[1730725917556,0.04536504,2484.5,2484.2,4.7937]
[1730725917718,4.53286,2484.8,2484.3,0.47937]
[1730725918048,4.53286,2484.8,2484.2,8.81898]
[1730725918208,4.02479,2484.6,2484.0,4.02566]
[1730725918411,0.04538139,2484.5,2484.0,4.02566]
[1730725918618,0.04538139,2484.5,2484.1,4.02545]
[1730725919288,0.04538139,2484.5,2484.2,4.02535]
[1730725919442,0.04538139,2484.5,2484.1,4.02545]
[1730725919634,4.02464,2484.7,2484.2,4.02535]
[1730725919841,0.04535185,2484.4,2484.3,4.02525]
[1730725920084,4.53238,2485.1,2484.4,4.02508]
[1730725920281,4.53238,2485.1,2484.6,4.02477]
[1730725920643,8.55648,2485.1,2484.6,4.02477]
[1730725920839,4.53237,2485.1,2484.6,4.02477]
[1730725921355,4.02415,2485.0,2484.6,4.02477]
[1730725921659,4.53237,2485.1,2484.6,4.0247]
[1730725922150,7.02375,2485.3,2484.8,4.02445]
[1730725922353,8.04749,2485.3,2484.8,4.02445]
[1730725922689,4.02374,2485.3,2484.8,4.02445]
[1730725923277,4.02374,2485.3,2484.6,5.624352]
[1730725923278,4.02385,2485.2,2484.6,5.624352]
[1730725923581,4.0243,2485.0,2484.4,4.02511]
[1730725923751,4.02431,2484.9,2484.5,4.02491]
[1730725923955,8.04873,2484.9,2484.4,4.02509]
[1730725924377,0.5083,2484.8,2484.4,4.02509]
[1730725924850,4.53278,2484.8,2484.2,4.02533]
[1730725925044,4.53278,2484.8,2484.4,4.02508]
[1730725925547,4.53278,2484.8,2484.3,4.02526]
[1730725926284,0.5083,2484.8,2484.2,4.02537]
[1730725926442,4.53278,2484.8,2484.2,4.02537]
[1730725926642,8.04969,2484.6,2484.1,4.02558]
[1730725926880,4.0248,2484.6,2484.1,4.02558]
[1730725927128,4.986168,2484.8,2483.9,4.0258]
[1730725927129,4.02513,2484.4,2483.9,4.0258]
[1730725927285,4.02488,2484.6,2484.0,4.02576]
[1730725927488,4.02511,2484.4,2483.9,4.0259]
[1730725927790,4.02522,2484.4,2483.9,4.02592]
[1730725928005,4.02495,2484.5,2483.9,4.02592]
[1730725928325,4.07058705,2484.4,2483.9,4.02592]
[1730725928483,0.04537705,2484.4,2484.0,4.02574]
[1730725928899,4.07059705,2484.4,2483.9,4.02592]
[1730725929178,4.02553,2484.2,2483.7,4.02622]
[1730725929391,0.04508762,2484.1,2483.7,4.02622]
[1730725929650,4.02576,2484.0,2483.5,4.02656]
[1730725929947,4.07078762,2484.1,2483.3,4.02687]
[1730725929948,4.02619,2483.8,2483.3,4.02687]
[1730725930291,0.04467108,2483.7,2483.3,4.909607]
[1730725930547,0.5083,2483.7,2483.2,4.02696]
[1730725930734,0.04459914,2483.6,2483.3,4.02681]
[1730725931088,4.07110914,2483.6,2483.1,4.02707]
[1730725931286,4.07110914,2483.6,2483.2,4.02703]
[1730725931717,0.04459914,2483.6,2483.2,4.02697]
[1730725932026,4.07110914,2483.6,2483.1,4.02722]
[1730725932240,4.07110914,2483.6,2483.1,4.02712]
[1730725932528,4.07110914,2483.6,2482.7,7.02778]
[1730725932529,4.02658,2483.5,2483.0,4.0889562]
[1730725932730,4.07100069,2483.5,2483.0,0.0615762]
[1730725932930,4.02675,2483.4,2483.0,0.0615762]
[1730725933146,4.02675,2483.4,2483.0,4.0889262]
[1730725933436,4.02675,2483.4,2483.0,0.0615762]
[1730725933437,0.04439759,2483.3,2483.0,0.0615762]
[1730725933646,4.02722,2483.1,2483.0,0.0615762]
[1730725934141,7.07142881,2483.1,2483.0,0.0615762]
[1730725934588,3.04420881,2483.1,2483.0,0.0615762]
[1730725935170,0.04420881,2483.1,2483.0,0.0615762]
[1730725936374,0.03340362,2483.1,2483.0,0.0615762]
[1730725936575,0.04415397,2483.1,2483.0,0.0615762]
[1730725936870,0.04381249,2483.1,2483.0,4.0888562]
[1730725937073,0.04381249,2483.1,2483.0,0.0615762]
[1730725937447,4.02681,2483.4,2483.0,0.0615762]
[1730725937651,0.04382931,2483.3,2483.0,4.0889462]
[1730725938065,0.04382931,2483.3,2483.1,4.0272]
[1730725938255,0.5083,2483.5,2483.1,4.02722]
[1730725938473,7.02621,2483.8,2483.3,4.02682]
[1730725938474,0.04390126,2483.4,2483.3,4.02682]
[1730725938975,4.53451,2483.8,2483.3,4.02682]
[1730725939161,0.04386759,2483.4,2483.3,4.02682]
[1730725939372,4.53443,2483.8,2483.4,4.02672]
[1730725939881,4.53439,2483.8,2483.4,4.02672]
[1730725940476,4.53439,2483.8,2483.3,4.02688]
[1730725940779,4.53439,2483.8,2483.4,4.02671]
[1730725941079,4.02584,2484.0,2483.3,4.02678]
[1730725941238,4.53397,2484.1,2483.6,4.02627]
[1730725941551,4.53397,2484.1,2483.7,4.02622]
[1730725941552,0.5083,2484.1,2483.7,4.02622]
[1730725941961,0.5083,2484.1,2483.6,4.02627]
[1730725941962,4.53391,2484.1,2483.6,4.02627]
[1730725942197,4.53391,2484.1,2483.4,4.02664]
[1730725942198,4.53394,2484.1,2483.5,4.02655]
[1730725942348,4.53394,2484.1,2483.6,4.02634]
[1730725942553,4.53394,2484.1,2483.4,4.02662]
[1730725942554,4.02595,2483.9,2483.4,8.05326]
[1730725942852,4.02595,2483.9,2483.4,4.914026]
[1730725943090,4.02577,2484.0,2483.5,4.02653]
[1730725943299,4.02579,2484.0,2483.3,4.0268]
[1730725943599,4.02619,2483.8,2483.2,4.84777]
[1730725943887,0.5083,2483.7,2483.2,4.02697]
[1730725944095,0.55207213,2483.7,2483.2,4.02697]
[1730725944254,4.02642,2483.6,2483.1,4.0272]
[1730725944459,0.04362825,2483.5,2483.2,0.21885943]
[1730725944778,4.07027825,2483.5,2483.0,4.0888862]
[1730725944980,0.04362825,2483.5,2483.2,4.02705]
[1730725945185,0.04362825,2483.5,2483.1,0.21886678]
[1730725945186,0.04362825,2483.5,2483.4,4.02673]
[1730725945390,0.04362825,2483.5,2483.3,4.24581424]
[1730725945391,0.5083,2483.9,2483.2,8.05412]
[1730725945623,0.04360457,2483.5,2483.4,4.02673]
[1730725945776,0.5083,2483.9,2483.4,4.02673]
[1730725945777,0.5083,2483.9,2483.6,4.02636]
[1730725946470,0.5083,2483.9,2483.7,0.21896257]
[1730725946688,0.5083,2483.9,2483.6,4.02636]
[1730725946887,0.5083,2483.9,2483.7,0.21895472]
[1730725947165,0.5083,2483.9,2483.6,4.02636]
[1730725947368,0.5083,2483.9,2483.7,0.21893522]
[1730725947581,0.5083,2483.9,2483.6,4.02636]
[1730725947788,0.5083,2483.9,2483.7,4.24518942]
[1730725948063,7.53375,2484.2,2483.8,0.21893532]
[1730725948399,7.53375,2484.2,2483.6,4.02636]
[1730725948400,4.02562,2484.1,2483.6,4.02636]
[1730725948602,4.02583,2484.0,2483.7,0.21900244]
[1730725948774,4.02562,2484.1,2483.7,4.02622]
[1730725948960,4.02562,2484.1,2483.8,0.21899188]
[1730725949162,4.02579,2484.0,2483.5,8.05304]
[1730725949402,4.02579,2484.0,2483.6,0.5694245]
[1730725949600,4.02561,2484.1,2483.7,0.2190023]
[1730725949948,4.02561,2484.1,2483.8,0.2190023]
[1730725950242,4.02561,2484.1,2483.4,0.7801]
[1730725950243,4.02599,2483.9,2483.4,4.80667]
[1730725950442,3.5083,2484.2,2483.5,4.59619659]
[1730725950443,4.0256,2484.1,2483.5,4.59619659]
[1730725950650,4.0256,2484.1,2483.6,4.59594659]
[1730725950802,4.0256,2484.1,2483.7,4.24528003]
[1730725951007,4.02518,2484.4,2483.9,4.02584]
[1730725951204,4.02518,2484.4,2484.0,0.21908003]
[1730725951205,4.02537,2484.3,2484.0,0.21908003]
[1730725951453,4.02544,2484.2,2484.1,0.21898898]
[1730725951743,4.02591,2484.0,2483.5,4.02654]
[1730725952052,4.02591,2484.0,2483.3,4.39183407]
[1730725952053,4.02611,2483.8,2483.6,0.5694587]
[1730725952256,4.02616,2483.8,2483.4,4.02666]
[1730725952548,4.02592,2483.9,2483.5,0.5697753]
[1730725952839,4.02592,2483.9,2483.6,0.5697753]
[1730725952840,4.026,2483.9,2483.6,0.5697753]
[1730725953044,4.026,2483.9,2483.7,0.5697753]
[1730725953207,4.026,2483.9,2483.8,0.56983047]
[1730725954957,4.53406,2484.0,2483.8,0.56983047]
[1730725955271,4.53406,2484.0,2483.9,0.56983047]
[1730725955837,4.53406,2484.0,2483.9,0.57096712]
[1730725955838,5.4705361,2484.0,2483.9,0.57096712]
[1730725956059,6.0205361,2484.0,2483.9,0.57096712]
[1730725956269,9.0205361,2484.0,2483.9,0.57096712]
[1730725956449,9.0205361,2484.0,2483.9,0.2195956]
[1730725956865,3.55,2483.9,2483.2,0.36606045]
[1730725957065,4.02681,2483.4,2483.3,1.01107456]
[1730725958268,4.07036755,2483.4,2483.3,1.01107456]
[1730725958456,4.07866755,2483.4,2483.3,1.01107456]
[1730725958835,7.07866755,2483.4,2483.3,1.01107456]
[1730725959036,7.07866755,2483.4,2483.3,0.57145875]
[1730725959388,9.18695839,2483.4,2483.3,0.57217462]
[1730725959586,9.18695839,2483.4,2483.3,0.22006001]
[1730725960781,8.63695839,2483.4,2483.3,0.22006001]
[1730725961090,7.07866755,2483.4,2483.3,0.57201039]
[1730725961239,7.07866755,2483.4,2483.3,0.22006001]
[1730725961749,3.55185755,2483.4,2483.3,0.57195411]
[1730725961949,7.57858755,2483.4,2483.3,0.57195411]
[1730725962152,3.55185755,2483.4,2483.3,0.57195411]
[1730725962386,3.04355755,2483.4,2483.3,0.57189362]
[1730725962540,7.07028755,2483.4,2483.3,0.22006001]
[1730725962737,0.04355755,2483.4,2483.3,0.22006001]
[1730725962963,0.04355755,2483.4,2483.3,0.57195303]
[1730725963162,3.5083,2483.7,2483.3,5.05874433]
[1730725963347,0.04333066,2483.4,2483.3,4.4867913]
[1730725963572,4.53458,2483.7,2483.3,5.05858448]
[1730725963881,4.53458,2483.7,2483.3,4.4867913]
[1730725964171,4.53458,2483.7,2483.4,0.21989869]
[1730725964172,0.04347455,2483.6,2483.4,0.21989869]
[1730725964386,4.06997455,2483.6,2483.5,0.21989869]
[1730725964983,0.04347455,2483.6,2483.5,0.21989869]
[1730725965204,0.04347455,2483.6,2483.5,4.59823201]
[1730725965512,4.02561,2484.1,2483.7,4.0262]
[1730725965718,4.02561,2484.1,2483.8,0.21989869]
[1730725965872,4.02561,2484.1,2483.9,0.21989869]
[1730725966212,4.53369,2484.3,2483.7,4.0262]
[1730725966369,8.55907,2484.3,2483.8,4.24583469]
[1730725966574,4.53368,2484.3,2483.8,4.24583469]
[1730725966797,4.02512,2484.4,2483.9,4.24566469]
[1730725967102,4.02512,2484.4,2484.0,0.98293469]
[1730725967314,4.02512,2484.4,2484.0,0.7631]
[1730725968169,4.02512,2484.4,2484.0,1.21102893]
[1730725968910,8.05038,2484.4,2484.0,1.21102893]
[1730725970712,8.05038,2484.4,2483.7,4.59717932]
[1730725970713,4.0257,2484.1,2483.7,5.39860932]
[1730725971007,0.5083,2484.1,2483.5,4.0265]
[1730725971211,4.5335,2484.4,2483.4,0.8013]
[1730725971401,0.5083,2484.4,2484.0,4.02574]
[1730725972411,4.02528,2484.3,2483.9,4.79719]
[1730725972611,4.02504,2484.5,2484.0,4.02567]
[1730725972832,4.02504,2484.5,2483.9,4.79719]
[1730725973044,4.0252,2484.4,2483.9,5.276909]
[1730725973203,3.0,2484.7,2483.9,0.7713]
[1730725973403,4.53385,2484.2,2483.6,4.83758]
[1730725973741,4.07015263,2484.1,2483.6,4.83758]
[1730725973925,0.04448263,2484.1,2483.7,4.02617]
[1730725974316,0.04448263,2484.1,2483.8,4.02608]
[1730725975305,0.04448263,2484.1,2483.7,4.02617]
[1730725975808,0.04448263,2484.1,2483.8,4.02605]
[1730725978649,0.04448263,2484.1,2483.7,4.02623]
[1730725978951,4.07020263,2484.1,2483.6,4.79457]
[1730725979133,4.02576,2484.0,2483.6,4.7947]
[1730725979689,0.04285481,2483.9,2483.6,4.7947]
[1730725980246,4.06877481,2483.9,2483.6,0.7683]
[1730725980592,0.04285481,2483.9,2483.6,4.79466]
[1730725980797,4.06879481,2483.9,2483.6,0.7683]
[1730725980960,0.04285481,2483.9,2483.6,0.7683]
[1730725981859,4.06877481,2483.9,2483.6,0.7683]
[1730725982245,0.04285481,2483.9,2483.6,0.7683]
[1730725982866,4.06878481,2483.9,2483.6,0.7683]
[1730725983073,4.06878481,2483.9,2483.3,4.78011]
[1730725983293,4.57708481,2483.9,2483.5,4.02657]
[1730725984162,0.04285481,2483.9,2483.5,4.02657]
[1730725984501,8.05008,2484.5,2484.1,4.02557]
[1730725984658,4.02503,2484.5,2484.1,4.02557]
[1730725984998,8.05009,2484.5,2484.1,4.02557]
[1730725985166,4.02503,2484.5,2484.0,4.02575]
[1730725985491,4.02521,2484.4,2484.0,4.02575]
[1730725985696,4.02501,2484.5,2484.0,4.02564]
[1730725986719,4.02501,2484.5,2483.8,4.77927]
[1730725986720,4.02507,2484.5,2483.9,4.02585]
[1730725987032,4.02522,2484.4,2483.9,4.02585]
[1730725987505,4.02522,2484.4,2483.8,4.77928]
[1730725987506,4.0254,2484.3,2483.8,8.80529]
[1730725987802,4.0254,2484.3,2483.9,4.02586]
[1730725988303,0.04157209,2484.2,2483.9,4.02586]
[1730725988661,4.02537,2484.3,2483.9,4.02586]
[1730725989003,0.04157209,2484.2,2483.9,4.02586]
[1730725989208,4.02563,2484.1,2483.8,0.7533]
[1730725989367,4.02563,2484.1,2483.6,0.7906]
[1730725989565,4.06665782,2484.0,2483.6,4.02626]
[1730725989894,4.06665782,2484.0,2483.5,4.02643]
[1730725990277,4.06665782,2484.0,2483.7,0.7906]
[1730725990466,4.06665782,2484.0,2483.7,4.81677]
[1730725990467,0.04083782,2484.0,2483.7,4.81677]
[1730725991312,4.02547,2484.2,2483.7,4.81677]
[1730725991786,0.04081293,2484.1,2483.8,4.02606]
[1730725992287,0.04081293,2484.1,2483.9,4.0258]
[1730725992516,4.02553,2484.2,2483.7,0.7906]
[1730725992822,0.0414607,2484.0,2483.7,4.81671]
[1730725993523,0.0413888,2483.9,2483.7,4.0261]
[1730725994021,4.02572,2484.1,2483.7,4.0261]
[1730725994187,0.04131191,2483.8,2483.7,4.0261]
[1730725994388,4.02572,2484.1,2483.7,4.0261]
[1730725994608,0.04131191,2483.8,2483.7,4.0261]
[1730725994917,4.02536,2484.3,2483.9,4.02589]
[1730725995618,4.02587,2484.0,2483.5,0.8236]
[1730725995826,4.02587,2484.0,2483.6,0.22081114]
[1730725995827,4.02602,2483.9,2483.6,0.22081114]
[1730725995989,4.02578,2484.0,2483.6,4.02639]
[1730725997422,8.05164,2484.0,2483.6,4.02639]
[1730725997826,4.02578,2484.0,2483.6,4.02639]
[1730725998343,4.02642,2483.6,2483.2,4.46872146]
[1730725998546,4.02642,2483.6,2483.3,0.22088911]
[1730725998708,4.02671,2483.5,2483.0,4.0888362]
[1730725999031,4.02677,2483.4,2483.1,0.22092034]
[1730725999240,4.02677,2483.4,2483.0,4.0888362]
[1730725999410,0.5083,2483.8,2483.0,4.0888362]
[1730725999613,4.02657,2483.5,2483.1,4.24806523]
[1730725999914,4.02625,2483.7,2483.2,4.02698]
[1730726000116,4.02644,2483.6,2483.2,4.02698]
[1730726000312,4.02625,2483.7,2483.2,4.02698]
[1730726000851,0.5083,2484.1,2483.3,0.22075132]
[1730726001012,4.02537,2484.3,2483.8,4.026]
[1730726001013,8.55911,2484.3,2483.8,4.026]
[1730726001219,4.0255,2484.2,2483.7,4.02614]
[1730726001437,4.02599,2483.9,2483.5,4.02648]
[1730726001638,0.5083,2484.2,2483.7,4.02623]
[1730726001639,4.02574,2484.1,2483.7,4.02623]
[1730726001840,4.92948101,2484.1,2483.7,4.02623]
[1730726002082,4.02574,2484.1,2483.7,4.02623]
[1730726002812,4.02574,2484.1,2483.5,4.02646]
[1730726002813,4.02574,2484.1,2483.6,4.02638]
[1730726003415,0.04136229,2484.0,2483.6,4.02638]
[1730726003847,4.53425,2483.9,2483.4,4.02658]
[1730726004149,4.06737848,2483.8,2483.2,4.38009737]
[1730726004353,0.04121848,2483.8,2483.3,4.24746423]
[1730726004596,0.04121848,2483.8,2483.5,4.02656]
[1730726004960,0.04121848,2483.8,2483.6,4.02637]
[1730726005174,4.53365,2484.3,2483.8,4.02598]
[1730726005452,0.5083,2484.3,2483.6,0.779]
[1730726005649,4.02566,2484.1,2483.6,4.8053]
[1730726006060,4.02566,2484.1,2483.7,4.02623]
[1730726006443,4.02592,2483.9,2483.4,4.02659]
[1730726006656,4.02609,2483.8,2483.3,8.05364]
[1730726006858,4.53417,2484.0,2483.5,4.02656]
[1730726007060,4.02593,2483.9,2483.5,4.0265]
[1730726008724,4.02593,2483.9,2483.4,4.8458]
[1730726008957,0.55,2483.7,2483.0,4.9080862]
[1730726009165,4.02667,2483.5,2483.0,4.9080862]
[1730726009333,4.02667,2483.5,2483.0,8.9353862]
[1730726009538,4.02667,2483.5,2483.0,4.9080762]
[1730726009864,4.02667,2483.5,2483.1,4.02714]
[1730726010461,0.5083,2483.3,2483.0,0.0615762]
[1730726010667,0.5083,2483.3,2483.0,0.06052089]
[1730726010668,4.53521,2483.3,2483.0,0.06052089]
[1730726011377,0.55,2483.2,2483.0,0.06052089]
[1730726011667,0.5083,2483.3,2483.0,0.06052089]
[1730726012032,4.02706,2483.2,2483.0,0.06052089]
[1730726012233,4.02722,2483.1,2483.0,0.06052089]
[1730726012871,4.883284,2483.2,2483.0,0.06052089]
[1730726014261,4.02722,2483.1,2483.0,0.06052089]
[1730726016579,8.08552,2483.1,2483.0,0.06052089]
[1730726018472,8.12608037,2483.1,2483.0,0.06052089]
[1730726018650,10.06094373,2483.1,2483.0,0.06052089]
[1730726020545,10.07094373,2483.1,2483.0,0.06052089]
[1730726021059,0.5083,2482.3,2481.7,0.0615762]
[1730726021390,4.02918,2481.9,2481.7,0.0615762]
[1730726021594,4.72093833,2481.9,2481.7,0.0615762]
[1730726021887,0.03926226,2481.8,2481.7,0.0615762]
[1730726022877,4.02904,2482.0,2481.7,0.0615762]
[1730726023115,0.03921613,2481.8,2481.7,0.0615762]
[1730726023253,4.02904,2482.0,2481.7,0.0615762]
[1730726023703,0.03928817,2481.9,2481.7,0.0615762]
[1730726023861,4.02909,2482.0,2481.7,0.0615762]
[1730726024068,0.44212357,2481.9,2481.7,0.0615762]
[1730726024412,0.03921457,2481.9,2481.7,0.0615762]
[1730726025005,0.03921457,2481.9,2481.7,4.8520562]
[1730726025306,0.03903908,2481.8,2481.7,4.8520562]
[1730726025480,4.02889,2482.1,2481.7,4.8520562]
[1730726025676,0.03947523,2482.0,2481.7,0.8225762]
[1730726025879,4.02859,2482.3,2481.8,4.02924]
[1730726026077,4.02859,2482.3,2481.7,4.8520062]
[1730726026078,0.03973922,2482.2,2481.9,4.02916]